[Event "*** Titled Tuesday Blitz"]
[Site "Chess.com"]
[Date "2020.11.03"]
[Round "7"]
[White "Supernotar"]
[Black "giantslayer83"]
[Result "1-0"]
[WhiteElo "2848"]
[BlackElo "2707"]
[TimeControl "180+1"]
[EndTime "11:21:28 PST"]
[Termination "Supernotar won by checkmate"]

1. d4 {[%clk 0:03:00.9]} 1... Nf6 {[%clk 0:02:58.5]} 2. c4 {[%clk 0:02:58.9]}
2... e6 {[%clk 0:02:58.5]} 3. Nf3 {[%clk 0:02:58.9]} 3... d5 {[%clk 0:02:57.5]}
4. e3 {[%clk 0:02:58.6]} 4... b6 {[%clk 0:02:54.3]} 5. Nbd2 {[%clk 0:02:57.7]}
5... Bb7 {[%clk 0:02:54.2]} 6. Bd3 {[%clk 0:02:56.7]} 6... Nbd7 {[%clk
0:02:53.6]} 7. O-O {[%clk 0:02:55.2]} 7... Bd6 {[%clk 0:02:53.5]} 8. b3 {[%clk
0:02:54.1]} 8... O-O {[%clk 0:02:30.9]} 9. Bb2 {[%clk 0:02:53.5]} 9... Ne4
{[%clk 0:02:31.2]} 10. Qe2 {[%clk 0:02:53]} 10... f5 {[%clk 0:02:28.9]} 11. cxd5
{[%clk 0:02:46.7]} 11... exd5 {[%clk 0:02:28]} 12. Ba6 {[%clk 0:02:35]} 12...
Bxa6 {[%clk 0:02:22]} 13. Qxa6 {[%clk 0:02:35.9]} 13... Qe7 {[%clk 0:02:15.4]}
14. g3 {[%clk 0:02:27.3]} 14... Ndf6 {[%clk 0:01:58.9]} 15. Rac1 {[%clk
0:02:24.2]} 15... Ng4 {[%clk 0:01:57.8]} 16. Rc2 {[%clk 0:02:12.4]} 16... Rae8
{[%clk 0:01:49]} 17. Ne5 {[%clk 0:02:02.5]} 17... Bxe5 {[%clk 0:01:27.9]} 18.
dxe5 {[%clk 0:02:03.4]} 18... Nxe5 {[%clk 0:01:17.2]} 19. Bxe5 {[%clk
0:01:59.9]} 19... Qxe5 {[%clk 0:01:18.1]} 20. Qxa7 {[%clk 0:01:58]} 20... Nc5
{[%clk 0:01:00.6]} 21. Qa3 {[%clk 0:01:49.7]} 21... Ra8 {[%clk 0:00:59.4]} 22.
Qc1 {[%clk 0:01:40.6]} 22... Nd3 {[%clk 0:00:59.4]} 23. Qb1 {[%clk 0:01:29.6]}
23... Nb4 {[%clk 0:00:57.5]} 24. Rb2 {[%clk 0:01:28.6]} 24... c5 {[%clk
0:00:57.8]} 25. a4 {[%clk 0:01:26.3]} 25... Rad8 {[%clk 0:00:51.2]} 26. Nf3
{[%clk 0:01:22.7]} 26... Qe4 {[%clk 0:00:48.7]} 27. Qd1 {[%clk 0:01:22.6]} 27...
d4 {[%clk 0:00:36.9]} 28. exd4 {[%clk 0:01:19.9]} 28... f4 {[%clk 0:00:37.3]}
29. Re1 {[%clk 0:01:13.5]} 29... Qb7 {[%clk 0:00:35.4]} 30. Ne5 {[%clk
0:00:59.8]} 30... Rxd4 {[%clk 0:00:33.7]} 31. Rd2 {[%clk 0:00:57.2]} 31... fxg3
{[%clk 0:00:32.5]} 32. hxg3 {[%clk 0:00:55]} 32... Qd5 {[%clk 0:00:31.2]} 33.
Rxd4 {[%clk 0:00:52.1]} 33... cxd4 {[%clk 0:00:32.1]} 34. Qd2 {[%clk 0:00:49]}
34... Na6 {[%clk 0:00:30.4]} 35. f4 {[%clk 0:00:42.2]} 35... Nc5 {[%clk
0:00:29.8]} 36. b4 {[%clk 0:00:40.3]} 36... Nxa4 {[%clk 0:00:26.8]} 37. Rc1
{[%clk 0:00:40.3]} 37... Rd8 {[%clk 0:00:23]} 38. Nc6 {[%clk 0:00:38.1]} 38...
Rd7 {[%clk 0:00:22.2]} 39. Qe2 {[%clk 0:00:31.2]} 39... h6 {[%clk 0:00:21.6]}
40. Qe8+ {[%clk 0:00:28.9]} 40... Kh7 {[%clk 0:00:21.6]} 41. Ne5 {[%clk
0:00:24.1]} 41... Rd8 {[%clk 0:00:12.1]} 42. Qg6+ {[%clk 0:00:21.6]} 42... Kh8
{[%clk 0:00:05.2]} 43. Nf7+ {[%clk 0:00:15.7]} 43... Kg8 {[%clk 0:00:04.4]} 44.
Nxh6+ {[%clk 0:00:15.8]} 44... Kf8 {[%clk 0:00:03.1]} 45. Rc7 {[%clk 0:00:13.8]}
45... Rd7 {[%clk 0:00:02.8]} 46. Rc8+ {[%clk 0:00:11.5]} 46... Ke7 {[%clk
0:00:03.2]} 47. Re8# {[%clk 0:00:07.8]} 1-0

[Event "*** Titled Tuesday Blitz"]
[Site "Chess.com"]
[Date "2020.11.03"]
[Round "7"]
[White "1stSecond"]
[Black "ZverevLev"]
[Result "1-0"]
[WhiteElo "2756"]
[BlackElo "2284"]
[TimeControl "180+1"]
[EndTime "11:21:29 PST"]
[Termination "1stSecond won on time"]

1. c4 {[%clk 0:03:00.9]} 1... e5 {[%clk 0:02:56.9]} 2. Nc3 {[%clk 0:03:00.3]}
2... Nf6 {[%clk 0:02:55.4]} 3. g3 {[%clk 0:02:58.6]} 3... d5 {[%clk 0:02:54]} 4.
cxd5 {[%clk 0:02:59.5]} 4... Nxd5 {[%clk 0:02:54.5]} 5. Bg2 {[%clk 0:03:00.1]}
5... Be6 {[%clk 0:02:53.8]} 6. Nf3 {[%clk 0:02:54]} 6... Nc6 {[%clk 0:02:52.7]}
7. O-O {[%clk 0:02:54.5]} 7... Be7 {[%clk 0:02:50.9]} 8. a3 {[%clk 0:02:47.1]}
8... O-O {[%clk 0:02:32.2]} 9. d3 {[%clk 0:02:46.7]} 9... a5 {[%clk 0:02:30.5]}
10. Bd2 {[%clk 0:02:46.6]} 10... f6 {[%clk 0:02:30]} 11. Rc1 {[%clk 0:02:46.1]}
11... Qd7 {[%clk 0:02:30.1]} 12. Ne4 {[%clk 0:02:43.2]} 12... Rad8 {[%clk
0:02:28.9]} 13. Nc5 {[%clk 0:02:42.2]} 13... Bxc5 {[%clk 0:02:28.8]} 14. Rxc5
{[%clk 0:02:43.1]} 14... b6 {[%clk 0:02:28.5]} 15. Rc1 {[%clk 0:02:40.4]} 15...
Nce7 {[%clk 0:02:26.1]} 16. b4 {[%clk 0:02:22.7]} 16... axb4 {[%clk 0:02:23.2]}
17. axb4 {[%clk 0:02:23.6]} 17... c6 {[%clk 0:02:17.8]} 18. Qc2 {[%clk
0:02:23.1]} 18... h6 {[%clk 0:02:13.7]} 19. Ra1 {[%clk 0:02:21.9]} 19... Bh3
{[%clk 0:02:09]} 20. Bxh3 {[%clk 0:02:19.2]} 20... Qxh3 {[%clk 0:02:09.9]} 21.
Ra7 {[%clk 0:02:17.2]} 21... Nf5 {[%clk 0:01:43.3]} 22. Qxc6 {[%clk 0:02:10.4]}
22... Rfe8 {[%clk 0:01:31.1]} 23. e4 {[%clk 0:01:46.5]} 23... Nf4 {[%clk
0:01:27.9]} 24. Bxf4 {[%clk 0:01:41.2]} 24... Qg4 {[%clk 0:01:16.8]} 25. exf5
{[%clk 0:01:40.6]} 25... exf4 {[%clk 0:01:15.4]} 26. Qc4+ {[%clk 0:01:37.4]}
26... Kh8 {[%clk 0:01:12.7]} 27. Qxf4 {[%clk 0:01:37.7]} 27... Qh5 {[%clk
0:01:05.9]} 28. Nh4 {[%clk 0:01:36.8]} 28... Rxd3 {[%clk 0:01:04.1]} 29. Ng6+
{[%clk 0:01:36.7]} 29... Kh7 {[%clk 0:01:01]} 30. Qc7 {[%clk 0:01:37]} 30... Rg8
{[%clk 0:01:00.9]} 31. Qc4 {[%clk 0:01:29.3]} 31... Rdd8 {[%clk 0:00:50]} 32.
Qe4 {[%clk 0:01:13.2]} 32... Rge8 {[%clk 0:00:46.2]} 33. Qf4 {[%clk 0:01:08.9]}
33... Rd1 {[%clk 0:00:42]} 34. Re7 {[%clk 0:00:48.5]} 34... Red8 {[%clk
0:00:33.5]} 35. Ree1 {[%clk 0:00:47.2]} 35... R1d4 {[%clk 0:00:27.9]} 36. Re4
{[%clk 0:00:46.8]} 36... Rd1 {[%clk 0:00:26.4]} 37. Rxd1 {[%clk 0:00:41.1]}
37... Rxd1+ {[%clk 0:00:23.8]} 38. Kg2 {[%clk 0:00:41.4]} 38... Rd8 {[%clk
0:00:18.3]} 39. g4 {[%clk 0:00:39.4]} 39... Qg5 {[%clk 0:00:13.2]} 40. h4 {[%clk
0:00:37.5]} 40... Qxf4 {[%clk 0:00:09.9]} 41. Nxf4 {[%clk 0:00:38.4]} 41... b5
{[%clk 0:00:09]} 42. Re7 {[%clk 0:00:38.7]} 42... Kh8 {[%clk 0:00:06.6]} 43. Nh5
{[%clk 0:00:37]} 43... Rd2 {[%clk 0:00:04.6]} 44. Nxg7 {[%clk 0:00:35.3]} 44...
Rb2 {[%clk 0:00:04.5]} 45. Kg3 {[%clk 0:00:32.8]} 45... Rb3+ {[%clk 0:00:04]}
46. f3 {[%clk 0:00:33.2]} 46... Rc3 {[%clk 0:00:03.9]} 47. Nh5 {[%clk
0:00:33.2]} 47... Rb3 {[%clk 0:00:04]} 48. Rb7 {[%clk 0:00:32]} 48... Rc3 {[%clk
0:00:03.7]} 49. Rxb5 {[%clk 0:00:31.7]} 49... Rb3 {[%clk 0:00:03.7]} 50. Rb6
{[%clk 0:00:32]} 50... Rb1 {[%clk 0:00:03.7]} 51. Nxf6 {[%clk 0:00:32.4]} 51...
Rg1+ {[%clk 0:00:03.5]} 52. Kf4 {[%clk 0:00:33]} 52... Rb1 {[%clk 0:00:03.7]}
53. g5 {[%clk 0:00:33.1]} 53... h5 {[%clk 0:00:03.1]} 54. Rb8+ {[%clk
0:00:32.4]} 54... Kg7 {[%clk 0:00:01.1]} 55. Rb7+ {[%clk 0:00:33.3]} 1-0

[Event "*** Titled Tuesday Blitz"]
[Site "Chess.com"]
[Date "2020.11.03"]
[Round "7"]
[White "SanchezKelvin"]
[Black "gilbert_gm"]
[Result "1-0"]
[WhiteElo "2431"]
[BlackElo "2564"]
[TimeControl "180+1"]
[EndTime "11:21:29 PST"]
[Termination "SanchezKelvin won on time"]

1. d4 {[%clk 0:02:39.8]} 1... Nf6 {[%clk 0:02:57.7]} 2. c4 {[%clk 0:02:39.1]}
2... g6 {[%clk 0:02:57.9]} 3. Nc3 {[%clk 0:02:38.6]} 3... Bg7 {[%clk 0:02:58.5]}
4. Nf3 {[%clk 0:02:38.8]} 4... O-O {[%clk 0:02:57.9]} 5. e4 {[%clk 0:02:38.9]}
5... d6 {[%clk 0:02:58.5]} 6. Be2 {[%clk 0:02:38.5]} 6... e5 {[%clk 0:02:58.7]}
7. O-O {[%clk 0:02:38.5]} 7... Nc6 {[%clk 0:02:58.8]} 8. d5 {[%clk 0:02:38.7]}
8... Ne7 {[%clk 0:02:59.1]} 9. Ne1 {[%clk 0:02:39.2]} 9... Nd7 {[%clk
0:02:56.7]} 10. Nd3 {[%clk 0:02:38.9]} 10... f5 {[%clk 0:02:55.4]} 11. Bd2
{[%clk 0:02:38.6]} 11... b6 {[%clk 0:02:47.1]} 12. b4 {[%clk 0:02:36.5]} 12...
Nf6 {[%clk 0:02:43.7]} 13. f3 {[%clk 0:02:35.3]} 13... f4 {[%clk 0:02:37.4]} 14.
c5 {[%clk 0:02:34.2]} 14... g5 {[%clk 0:02:36.4]} 15. cxd6 {[%clk 0:02:32.1]}
15... cxd6 {[%clk 0:02:36.2]} 16. Nf2 {[%clk 0:02:31.2]} 16... h5 {[%clk
0:02:34.7]} 17. h3 {[%clk 0:02:30.8]} 17... Ng6 {[%clk 0:02:23.6]} 18. Rc1
{[%clk 0:02:27.5]} 18... Nh4 {[%clk 0:02:21.4]} 19. Nb5 {[%clk 0:02:24.5]} 19...
Ne8 {[%clk 0:02:20.5]} 20. a4 {[%clk 0:01:59.7]} 20... Bd7 {[%clk 0:02:08.4]}
21. Qb3 {[%clk 0:01:56.9]} 21... Rf6 {[%clk 0:02:01.6]} 22. Rc6 {[%clk
0:01:45.7]} 22... a6 {[%clk 0:01:52.5]} 23. Na3 {[%clk 0:01:43.1]} 23... Kh7
{[%clk 0:01:36]} 24. Rc3 {[%clk 0:01:36.3]} 24... Rg6 {[%clk 0:01:32.8]} 25.
Rfc1 {[%clk 0:01:23.1]} 25... Nf6 {[%clk 0:01:25.1]} 26. Be1 {[%clk 0:01:07.7]}
26... g4 {[%clk 0:01:20.7]} 27. hxg4 {[%clk 0:01:05.5]} 27... hxg4 {[%clk
0:01:20.8]} 28. fxg4 {[%clk 0:01:05.4]} 28... Nxg4 {[%clk 0:01:02.6]} 29. Nxg4
{[%clk 0:01:02.9]} 29... Bxg4 {[%clk 0:01:02.6]} 30. Bxg4 {[%clk 0:00:59.2]}
30... Rxg4 {[%clk 0:01:03.5]} 31. Bxh4 {[%clk 0:00:57.3]} 31... Rxh4 {[%clk
0:01:04.4]} 32. Rh3 {[%clk 0:00:56.5]} 32... Kg6 {[%clk 0:00:55.5]} 33. Rcc3
{[%clk 0:00:46]} 33... Qg5 {[%clk 0:00:47]} 34. Rxh4 {[%clk 0:00:37.4]} 34...
Qxh4 {[%clk 0:00:47.9]} 35. Rh3 {[%clk 0:00:37.2]} 35... Qe1+ {[%clk 0:00:47]}
36. Kh2 {[%clk 0:00:37.4]} 36... Bf6 {[%clk 0:00:37.7]} 37. Qf3 {[%clk
0:00:36.5]} 37... Rh8 {[%clk 0:00:25]} 38. Qg4+ {[%clk 0:00:35.5]} 38... Kf7
{[%clk 0:00:24.7]} 39. Nc4 {[%clk 0:00:26]} 39... Rxh3+ {[%clk 0:00:19.5]} 40.
Qxh3 {[%clk 0:00:25.8]} 40... Be7 {[%clk 0:00:17.1]} 41. Qf5+ {[%clk 0:00:24.9]}
41... Kg7 {[%clk 0:00:14.5]} 42. Qg4+ {[%clk 0:00:21.9]} 42... Kf7 {[%clk
0:00:14.1]} 43. Qf5+ {[%clk 0:00:21.4]} 43... Kg7 {[%clk 0:00:14.3]} 44. Qg4+
{[%clk 0:00:21.3]} 44... Kf7 {[%clk 0:00:14.7]} 45. Nxb6 {[%clk 0:00:20.3]}
45... Qxb4 {[%clk 0:00:11.3]} 46. Nc8 {[%clk 0:00:19.9]} 46... Bf6 {[%clk
0:00:06.8]} 47. Qe6+ {[%clk 0:00:18.9]} 47... Kg6 {[%clk 0:00:06]} 48. Nxd6
{[%clk 0:00:18.5]} 48... Qe1 {[%clk 0:00:05.7]} 49. Qg4+ {[%clk 0:00:17.3]}
49... Kh7 {[%clk 0:00:04]} 50. Qh5+ {[%clk 0:00:16.9]} 50... Kg8 {[%clk
0:00:03.2]} 51. Qg6+ {[%clk 0:00:16.4]} 51... Bg7 {[%clk 0:00:03.6]} 52. Nf5
{[%clk 0:00:16.2]} 1-0

[Event "*** Titled Tuesday Blitz"]
[Site "Chess.com"]
[Date "2020.11.03"]
[Round "7"]
[White "KetiGrant"]
[Black "Sergey85Rodchenkov"]
[Result "1-0"]
[WhiteElo "2310"]
[BlackElo "2435"]
[TimeControl "180+1"]
[EndTime "11:21:30 PST"]
[Termination "KetiGrant won on time"]

1. e4 {[%clk 0:03:00.9]} 1... c5 {[%clk 0:02:59.7]} 2. Nf3 {[%clk 0:03:00.5]}
2... d6 {[%clk 0:02:59.7]} 3. Bb5+ {[%clk 0:03:00.2]} 3... Nd7 {[%clk
0:02:59.2]} 4. c3 {[%clk 0:02:58.8]} 4... Nf6 {[%clk 0:02:59.2]} 5. Bd3 {[%clk
0:02:54.8]} 5... g6 {[%clk 0:02:58.3]} 6. O-O {[%clk 0:02:54.1]} 6... Bg7 {[%clk
0:02:57.8]} 7. Bc2 {[%clk 0:02:54.7]} 7... O-O {[%clk 0:02:57.8]} 8. d4 {[%clk
0:02:54.7]} 8... b5 {[%clk 0:02:46.7]} 9. e5 {[%clk 0:02:50]} 9... Ne8 {[%clk
0:02:42.1]} 10. Re1 {[%clk 0:02:45.7]} 10... Nc7 {[%clk 0:02:36.9]} 11. Bg5
{[%clk 0:02:28.4]} 11... dxe5 {[%clk 0:02:36.1]} 12. dxe5 {[%clk 0:02:26.2]}
12... Ne6 {[%clk 0:02:35.9]} 13. Bh4 {[%clk 0:02:22.8]} 13... Bb7 {[%clk
0:02:35.5]} 14. Nbd2 {[%clk 0:02:22.4]} 14... Re8 {[%clk 0:02:30.1]} 15. Qe2
{[%clk 0:02:21.3]} 15... c4 {[%clk 0:02:26.6]} 16. Rad1 {[%clk 0:02:15.8]} 16...
Qc7 {[%clk 0:02:26.6]} 17. Bg3 {[%clk 0:02:10.3]} 17... Ndc5 {[%clk 0:02:24.6]}
18. Nd4 {[%clk 0:02:00.5]} 18... Nxd4 {[%clk 0:02:16.5]} 19. cxd4 {[%clk
0:01:59.8]} 19... Ne6 {[%clk 0:02:16.7]} 20. Ne4 {[%clk 0:01:52.7]} 20... Rad8
{[%clk 0:02:15.1]} 21. Qe3 {[%clk 0:01:46.9]} 21... Qc6 {[%clk 0:02:10.7]} 22.
f3 {[%clk 0:01:41.4]} 22... Rd5 {[%clk 0:02:07]} 23. Nc3 {[%clk 0:01:38.2]}
23... Nc7 {[%clk 0:01:58.5]} 24. Be4 {[%clk 0:01:34.2]} 24... e6 {[%clk
0:01:56.1]} 25. Bf4 {[%clk 0:01:16.9]} 25... Bf8 {[%clk 0:01:50.9]} 26. Bh6
{[%clk 0:01:13]} 26... Bb4 {[%clk 0:01:48.5]} 27. Qg5 {[%clk 0:00:57.5]} 27...
Be7 {[%clk 0:01:46.3]} 28. Qg4 {[%clk 0:00:54.3]} 28... a5 {[%clk 0:01:42.4]}
29. h4 {[%clk 0:00:52.7]} 29... b4 {[%clk 0:01:40.6]} 30. Nxd5 {[%clk
0:00:52.3]} 30... Nxd5 {[%clk 0:01:41.2]} 31. h5 {[%clk 0:00:52]} 31... Bf8
{[%clk 0:01:13.6]} 32. Bxf8 {[%clk 0:00:50.1]} 32... Kxf8 {[%clk 0:01:12.7]} 33.
Kf2 {[%clk 0:00:46.5]} 33... c3 {[%clk 0:01:09.7]} 34. bxc3 {[%clk 0:00:43.7]}
34... bxc3 {[%clk 0:01:08.5]} 35. hxg6 {[%clk 0:00:41.6]} 35... hxg6 {[%clk
0:01:07.8]} 36. Rh1 {[%clk 0:00:41.7]} 36... Ke7 {[%clk 0:01:06.8]} 37. Rh7
{[%clk 0:00:37.9]} 37... Rf8 {[%clk 0:01:05.8]} 38. Bxg6 {[%clk 0:00:35.2]}
38... Ke8 {[%clk 0:00:38.2]} 39. Be4 {[%clk 0:00:33.1]} 39... Ba6 {[%clk
0:00:31.7]} 40. Rc1 {[%clk 0:00:30.9]} 40... Qc4 {[%clk 0:00:30.3]} 41. Bxd5
{[%clk 0:00:28.1]} 41... exd5 {[%clk 0:00:27.1]} 42. e6 {[%clk 0:00:26]} 42...
Qe2+ {[%clk 0:00:26.6]} 43. Kg1 {[%clk 0:00:25.8]} 43... Qe3+ {[%clk 0:00:25.3]}
44. Kh2 {[%clk 0:00:24.5]} 44... Qxc1 {[%clk 0:00:24.8]} 45. exf7+ {[%clk
0:00:24.3]} 45... Ke7 {[%clk 0:00:20.2]} 46. Qh4+ {[%clk 0:00:23.2]} 46... Kd7
{[%clk 0:00:19.5]} 47. Qg4+ {[%clk 0:00:20.6]} 47... Ke7 {[%clk 0:00:19.2]} 48.
Qh4+ {[%clk 0:00:19.3]} 48... Kd7 {[%clk 0:00:19.4]} 49. Qg4+ {[%clk 0:00:19.5]}
49... Kc7 {[%clk 0:00:18.6]} 50. Qg3+ {[%clk 0:00:17.8]} 50... Kb7 {[%clk
0:00:18.7]} 51. Qd6 {[%clk 0:00:17]} 1-0

[Event "*** Titled Tuesday Blitz"]
[Site "Chess.com"]
[Date "2020.11.03"]
[Round "7"]
[White "NewBornNow"]
[Black "Oleksandr_Bortnyk"]
[Result "0-1"]
[WhiteElo "2647"]
[BlackElo "2910"]
[TimeControl "180+1"]
[EndTime "11:21:31 PST"]
[Termination "Oleksandr_Bortnyk won on time"]

1. e4 {[%clk 0:03:00.6]} 1... c5 {[%clk 0:02:57.4]} 2. Nf3 {[%clk 0:02:59.4]}
2... d6 {[%clk 0:02:55.4]} 3. Bb5+ {[%clk 0:02:56.8]} 3... Nd7 {[%clk
0:02:46.4]} 4. O-O {[%clk 0:02:55.7]} 4... Nf6 {[%clk 0:02:45.1]} 5. Re1 {[%clk
0:02:54.3]} 5... a6 {[%clk 0:02:45.4]} 6. Bf1 {[%clk 0:02:48.5]} 6... e5 {[%clk
0:02:44.5]} 7. c3 {[%clk 0:02:46.9]} 7... Be7 {[%clk 0:02:42.2]} 8. d4 {[%clk
0:02:45.1]} 8... O-O {[%clk 0:02:43.1]} 9. dxe5 {[%clk 0:02:41.2]} 9... dxe5
{[%clk 0:02:41.9]} 10. c4 {[%clk 0:02:40.7]} 10... Nb8 {[%clk 0:01:16.8]} 11.
Qxd8 {[%clk 0:02:38.3]} 11... Bxd8 {[%clk 0:01:17.7]} 12. Nxe5 {[%clk
0:02:35.2]} 12... Re8 {[%clk 0:01:17.4]} 13. f4 {[%clk 0:02:34.1]} 13... Bc7
{[%clk 0:01:09.2]} 14. Nc3 {[%clk 0:02:32.3]} 14... Bxe5 {[%clk 0:00:30.8]} 15.
fxe5 {[%clk 0:02:31.5]} 15... Nfd7 {[%clk 0:00:22.1]} 16. Nd5 {[%clk 0:02:28.4]}
16... Ra7 {[%clk 0:00:22.7]} 17. Nc7 {[%clk 0:01:51.5]} 17... Re7 {[%clk
0:00:18.1]} 18. Bg5 {[%clk 0:01:47.1]} 18... Rxe5 {[%clk 0:00:17.2]} 19. Bf4
{[%clk 0:01:46.2]} 19... Nc6 {[%clk 0:00:04.1]} 20. Rad1 {[%clk 0:01:35.3]}
20... Kf8 {[%clk 0:00:02.3]} 21. Bxe5 {[%clk 0:01:22.9]} 21... Ndxe5 {[%clk
0:00:03.2]} 22. Nd5 {[%clk 0:01:22.7]} 22... Nd4 {[%clk 0:00:03.5]} 23. b4
{[%clk 0:01:18.7]} 23... Nc2 {[%clk 0:00:03.8]} 24. Re2 {[%clk 0:01:16.1]} 24...
Nd4 {[%clk 0:00:02.8]} 25. Rb2 {[%clk 0:01:10.2]} 25... Bg4 {[%clk 0:00:02.7]}
26. Rdd2 {[%clk 0:01:07.3]} 26... Ne6 {[%clk 0:00:02.5]} 27. Ne3 {[%clk
0:00:58.5]} 27... Bh5 {[%clk 0:00:02.7]} 28. Rd5 {[%clk 0:00:57.3]} 28... f6
{[%clk 0:00:03]} 29. bxc5 {[%clk 0:00:57.1]} 29... Bg6 {[%clk 0:00:02.6]} 30.
Nf5 {[%clk 0:00:54.7]} 30... Be8 {[%clk 0:00:03]} 31. Nd4 {[%clk 0:00:17.6]}
31... Ng5 {[%clk 0:00:02]} 32. Rd8 {[%clk 0:00:13.9]} 32... Ke7 {[%clk 0:00:02]}
33. Rb8 {[%clk 0:00:12.4]} 33... Nxe4 {[%clk 0:00:02]} 34. R8xb7+ {[%clk
0:00:10.1]} 34... Rxb7 {[%clk 0:00:02.9]} 35. Rxb7+ {[%clk 0:00:09.7]} 35... Kd8
{[%clk 0:00:03.8]} 36. Ne6+ {[%clk 0:00:08]} 36... Kc8 {[%clk 0:00:04.2]} 37.
Rc7+ {[%clk 0:00:05.6]} 37... Kb8 {[%clk 0:00:04.4]} 38. Rxg7 {[%clk 0:00:05.8]}
38... Bd7 {[%clk 0:00:04.8]} 39. Nd4 {[%clk 0:00:04.7]} 39... h5 {[%clk
0:00:03.3]} 40. c6 {[%clk 0:00:03.3]} 40... Bc8 {[%clk 0:00:03.8]} 41. c7+
{[%clk 0:00:02.4]} 41... Kb7 {[%clk 0:00:04]} 42. c5 {[%clk 0:00:01.9]} 42...
Nxc5 {[%clk 0:00:04.4]} 43. Nb3 {[%clk 0:00:00.6]} 43... Ne6 {[%clk 0:00:04.1]}
0-1

[Event "*** Titled Tuesday Blitz"]
[Site "Chess.com"]
[Date "2020.11.03"]
[Round "7"]
[White "Kotofeyca"]
[Black "Anna_ChessMate"]
[Result "0-1"]
[WhiteElo "2369"]
[BlackElo "2536"]
[TimeControl "180+1"]
[EndTime "11:21:34 PST"]
[Termination "Anna_ChessMate won by checkmate"]

1. d4 {[%clk 0:03:00.9]} 1... d5 {[%clk 0:02:59.7]} 2. c4 {[%clk 0:03:00.9]}
2... c6 {[%clk 0:03:00.1]} 3. Nc3 {[%clk 0:03:01.4]} 3... Nf6 {[%clk 0:03:00.4]}
4. cxd5 {[%clk 0:03:02]} 4... cxd5 {[%clk 0:03:00.5]} 5. Bf4 {[%clk 0:03:02.6]}
5... Nc6 {[%clk 0:03:00.5]} 6. e3 {[%clk 0:03:03.1]} 6... Bf5 {[%clk 0:03:00.2]}
7. Nf3 {[%clk 0:03:01.3]} 7... e6 {[%clk 0:03:00.3]} 8. Bb5 {[%clk 0:03:01.8]}
8... Bb4 {[%clk 0:02:51.6]} 9. Qa4 {[%clk 0:03:00.7]} 9... Bxc3+ {[%clk
0:02:51]} 10. bxc3 {[%clk 0:03:01.3]} 10... O-O {[%clk 0:02:48.1]} 11. Bxc6
{[%clk 0:02:49.4]} 11... bxc6 {[%clk 0:02:49]} 12. Qxc6 {[%clk 0:02:48.4]} 12...
Rc8 {[%clk 0:02:48.4]} 13. Qd6 {[%clk 0:02:45.9]} 13... Ne4 {[%clk 0:02:43.9]}
14. Qxd8 {[%clk 0:02:41.4]} 14... Rfxd8 {[%clk 0:02:44.3]} 15. O-O {[%clk
0:02:37]} 15... Nxc3 {[%clk 0:02:42.7]} 16. Kh1 {[%clk 0:02:08]} 16... f6 {[%clk
0:02:40.1]} 17. Rfc1 {[%clk 0:02:04.9]} 17... g5 {[%clk 0:02:39.4]} 18. Bg3
{[%clk 0:02:02.4]} 18... h5 {[%clk 0:02:39.5]} 19. h4 {[%clk 0:01:52]} 19... g4
{[%clk 0:02:36.9]} 20. Ng1 {[%clk 0:01:26.9]} 20... Rc4 {[%clk 0:02:32.4]} 21.
f3 {[%clk 0:01:17.4]} 21... Kf7 {[%clk 0:02:29]} 22. Be1 {[%clk 0:01:14.3]}
22... Rdc8 {[%clk 0:02:23.6]} 23. Kh2 {[%clk 0:01:07.3]} 23... a5 {[%clk
0:02:04.4]} 24. Bd2 {[%clk 0:01:05.4]} 24... a4 {[%clk 0:01:55.6]} 25. a3 {[%clk
0:01:04.7]} 25... e5 {[%clk 0:01:34.7]} 26. dxe5 {[%clk 0:01:01.7]} 26... fxe5
{[%clk 0:01:35.6]} 27. Kg3 {[%clk 0:00:59.9]} 27... Ke6 {[%clk 0:01:31.4]} 28.
Kf2 {[%clk 0:00:57.1]} 28... gxf3 {[%clk 0:01:27.8]} 29. gxf3 {[%clk 0:00:56.6]}
29... Bd3 {[%clk 0:01:13.1]} 30. f4 {[%clk 0:00:38]} 30... Ne4+ {[%clk
0:01:00.6]} 31. Ke1 {[%clk 0:00:30.4]} 31... exf4 {[%clk 0:00:53.5]} 32. exf4
{[%clk 0:00:31.3]} 32... Rg8 {[%clk 0:00:40.9]} 33. Nf3 {[%clk 0:00:28.6]} 33...
Rg2 {[%clk 0:00:39.2]} 34. Rxc4 {[%clk 0:00:21.1]} 34... dxc4 {[%clk 0:00:36.8]}
35. Rc1 {[%clk 0:00:18.3]} 35... Re2+ {[%clk 0:00:34]} 36. Kf1 {[%clk
0:00:12.5]} 36... Nxd2+ {[%clk 0:00:26.8]} 37. Nxd2 {[%clk 0:00:11.9]} 37...
Rxd2+ {[%clk 0:00:27.7]} 38. Ke1 {[%clk 0:00:12]} 38... Re2+ {[%clk 0:00:27.5]}
39. Kd1 {[%clk 0:00:12.9]} 39... Rh2 {[%clk 0:00:26.7]} 40. Rc3 {[%clk
0:00:13.8]} 40... Kf5 {[%clk 0:00:25.9]} 41. Ke1 {[%clk 0:00:12.4]} 41... Kxf4
{[%clk 0:00:25.8]} 42. Kd1 {[%clk 0:00:12.3]} 42... Ke3 {[%clk 0:00:23.8]} 43.
Kc1 {[%clk 0:00:13.2]} 43... Rxh4 {[%clk 0:00:19]} 44. Kb2 {[%clk 0:00:14.1]}
44... Rh2+ {[%clk 0:00:16.4]} 45. Ka1 {[%clk 0:00:14]} 45... Rh1+ {[%clk
0:00:16.1]} 46. Kb2 {[%clk 0:00:13]} 46... h4 {[%clk 0:00:14.2]} 47. Ka2 {[%clk
0:00:13.9]} 47... Kd2 {[%clk 0:00:13.1]} 48. Rc1 {[%clk 0:00:13.1]} 48... Kxc1
{[%clk 0:00:10.4]} 49. Ka1 {[%clk 0:00:12.8]} 49... Kd2+ {[%clk 0:00:08.9]} 50.
Ka2 {[%clk 0:00:13.7]} 50... Bb1+ {[%clk 0:00:07.8]} 51. Ka1 {[%clk 0:00:14.6]}
51... Bc2+ {[%clk 0:00:07.7]} 52. Ka2 {[%clk 0:00:14.4]} 52... Bb3+ {[%clk
0:00:07.8]} 53. Kb2 {[%clk 0:00:14.1]} 53... c3# {[%clk 0:00:08.7]} 0-1